bitfinex/quotes_SOLUSD_20250108
["timestamp","ask_amount","ask_price","bid_price","bid_amount"]
[1736339644525,20.0,195.66,195.56,210.4314438]
[1736339645644,20.0,195.62,195.56,210.4314438]
[1736339646943,20.0,195.62,195.56,70.9914438]
[1736339648283,24.34157202,195.61,195.55,46.02]
[1736339648579,20.0,195.58,195.55,46.02]
[1736339649082,24.34157202,195.61,195.55,46.02]
[1736339649083,23.776884,195.57,195.55,46.02]
[1736339649245,23.776884,195.57,195.55,45.9539]
[1736339649445,20.0,195.57,195.55,45.9539]
[1736339649881,20.0,195.59,195.55,45.9539]
[1736339650079,20.0,195.56,195.55,45.9539]
[1736339650403,0.56468802,195.58,195.49,79.0414438]
[1736339650594,20.0,195.59,195.49,79.80844543]
[1736339650882,20.56468802,195.59,195.49,79.0414438]
[1736339651048,20.0,195.55,195.49,79.0414438]
[1736339651470,23.776884,195.58,195.49,216.1414438]
[1736339651667,20.0,195.55,195.49,216.1414438]
[1736339651874,20.0,195.53,195.49,216.1414438]
[1736339655378,20.0,195.53,195.49,8.05]
[1736339655774,20.0,195.53,195.49,6.461]
[1736339656099,20.0,195.53,195.46,2.36]
[1736339656656,20.0,195.49,195.45,6.1286]
[1736339657079,20.0,195.49,195.45,6.8958457]
[1736339657281,2.06989581,195.56,195.45,143.9958457]
[1736339657481,20.0,195.53,195.45,143.2286]
[1736339657668,20.0,195.51,195.45,143.2286]
[1736339658579,43.776884,195.57,195.45,143.2286]
[1736339658760,20.0,195.52,195.45,143.2286]
[1736339663494,20.0,195.52,195.46,0.76717955]
[1736339663998,3.65018008,195.58,195.46,224.57029192]
[1736339664167,2.6023681,195.58,195.47,15.71166857]
[1736339664360,23.776884,195.57,195.46,208.0914438]
[1736339664565,20.0,195.54,195.46,208.0914438]
[1736339664763,23.776884,195.53,195.46,208.0914438]
[1736339665781,20.0,195.61,195.46,208.0914438]
[1736339665977,0.56468802,195.6,195.47,0.76710147]
[1736339666173,23.776884,195.59,195.47,137.1]
[1736339666368,20.0,195.52,195.47,137.1]
[1736339668267,20.0,195.61,195.48,208.85852863]
[1736339668472,0.56468802,195.6,195.48,218.15173491]
[1736339668705,0.56468802,195.6,195.49,10.06029111]
[1736339668871,0.56468802,195.6,195.5,2.36]
[1736339669203,20.0,195.56,195.5,210.4514438]
[1736339670790,23.776884,195.55,195.5,73.3514438]
[1736339670992,20.0,195.52,195.5,73.3514438]
[1736339671582,0.56468802,195.63,195.5,70.9914438]
[1736339672003,23.776884,195.6,195.5,70.9914438]
[1736339672284,20.0,195.55,195.5,70.9914438]
[1736339672893,20.56468802,195.63,195.5,208.0914438]
[1736339673096,2.64240031,195.63,195.51,1.6286]
[1736339673300,20.0,195.56,195.51,1.6286]
[1736339673814,43.776884,195.62,195.51,1.6286]
[1736339674011,20.0,195.57,195.51,1.6286]
[1736339675199,0.56468802,195.59,195.51,1.6286]
[1736339675388,20.0,195.57,195.51,1.6286]
[1736339675812,20.0,195.59,195.51,138.7286]
[1736339676026,20.0,195.59,195.52,6.3672]
[1736339676698,23.776884,195.57,195.52,6.3672]
[1736339677414,20.0,195.52,195.47,143.6882]
[1736339679412,20.0,195.52,195.47,6.5882]
[1736339681824,2.28309998,195.62,195.47,214.6796438]
[1736339682113,20.0,195.61,195.48,0.76712106]
[1736339682415,0.56468802,195.6,195.48,0.76712106]
[1736339682605,20.0,195.56,195.48,208.85856486]
[1736339682805,20.0,195.56,195.48,208.0914438]
[1736339683204,23.776884,195.56,195.48,208.0914438]
[1736339683597,20.0,195.59,195.48,208.0914438]
[1736339683892,43.776884,195.57,195.48,208.0914438]
[1736339684319,20.0,195.61,195.49,0.76705784]
[1736339684616,2.66444924,195.62,195.5,15.72107305]
[1736339684921,2.66444924,195.62,195.47,7.6371]
[1736339685091,20.0,195.55,195.47,145.5041509]
[1736339685299,20.0,195.55,195.47,144.7371]
[1736339685501,23.776884,195.54,195.47,144.7371]
[1736339685710,20.0,195.51,195.47,7.6371]
[1736339687721,20.0,195.51,195.47,6.0297]
[1736339688024,20.0,195.51,195.45,137.1]
[1736339689002,20.0,195.51,195.43,143.472]
[1736339689414,20.0,195.51,195.44,0.76725958]
[1736339690326,2.01060299,195.58,195.45,15.72107305]
[1736339690525,0.56468802,195.61,195.47,15.72107305]
[1736339690723,20.0,195.59,195.48,208.85846093]
[1736339690925,20.0,195.6,195.48,208.0914438]
[1736339691112,20.0,195.55,195.48,208.0914438]
[1736339691724,2.16698802,195.64,195.49,25.71157305]
[1736339692031,4.52698802,195.64,195.5,137.86688838]
[1736339692232,20.0,195.6,195.5,137.1]
[1736339692401,20.0,195.61,195.51,0.76687488]
[1736339692827,20.0,195.6,195.51,0.76687488]
[1736339693032,23.776884,195.63,195.51,0.76687488]
[1736339693327,24.34157202,195.63,195.5,137.1]
[1736339693625,20.0,195.56,195.5,137.1]
[1736339694002,20.0,195.56,195.51,0.76698409]
[1736339695410,22.08607142,195.64,195.51,137.86698409]
[1736339695630,43.776884,195.63,195.51,137.1]
[1736339695833,23.776884,195.63,195.52,137.86687766]
[1736339696126,20.0,195.6,195.52,137.1]
[1736339696752,20.0,195.58,195.52,137.1]
[1736339700744,20.0,195.54,195.49,147.0905]
[1736339700952,20.0,195.54,195.49,215.7219438]
[1736339701148,20.0,195.54,195.49,208.0914438]
[1736339701311,0.56468802,195.56,195.45,215.8745438]
[1736339701312,20.0,195.5,195.45,215.8745438]
[1736339702131,20.0,195.5,195.45,208.0914438]
[1736339702543,20.0,195.5,195.42,2.36]
[1736339702544,20.0,195.5,195.42,137.1]
[1736339702713,20.0,195.46,195.4,144.7764]
[1736339703342,20.0,195.48,195.4,144.7764]
[1736339703926,20.0,195.48,195.41,0.76736908]
[1736339705342,20.0,195.48,195.4,144.7764]
[1736339708742,23.776884,195.47,195.4,7.6764]
[1736339708950,23.776884,195.47,195.37,137.1]
[1736339708951,0.56468802,195.47,195.37,137.1]
[1736339709243,20.0,195.47,195.38,0.76751923]
[1736339709740,20.0,195.47,195.38,208.85896303]
[1736339709944,23.776884,195.5,195.38,208.0914438]
[1736339710123,20.0,195.47,195.39,208.85882711]
[1736339710324,20.0,195.47,195.39,208.0914438]
[1736339710539,20.0,195.47,195.4,137.86729658]
[1736339710730,20.0,195.48,195.4,137.1]
[1736339710930,20.0,195.48,195.41,0.76728542]
[1736339711326,43.776884,195.51,195.41,0.76728542]
[1736339711723,43.776884,195.53,195.41,137.86728542]
[1736339711934,20.0,195.5,195.41,137.1]
[1736339712140,20.0,195.46,195.41,137.1]
[1736339712324,23.776884,195.49,195.35,137.1]
[1736339712325,24.34157202,195.48,195.35,137.1]
[1736339712641,20.0,195.45,195.35,137.1]
[1736339714155,20.0,195.45,195.34,46.08]
[1736339714323,0.56468802,195.44,195.34,46.08]
[1736339714524,23.776884,195.43,195.34,46.08]
[1736339714746,20.0,195.36,195.34,46.08]
[1736339715355,20.0,195.4,195.34,46.08]
[1736339715532,20.0,195.36,195.34,46.08]
[1736339715730,23.776884,195.35,195.29,6.0986]
[1736339715932,20.0,195.32,195.24,137.1]
[1736339717951,20.0,195.32,195.25,0.76799918]
[1736339718756,2.10625224,195.37,195.25,208.85944298]
[1736339719055,2.10625224,195.37,195.24,15.72107305]
[1736339719056,0.56468802,195.42,195.26,223.81251685]
[1736339719232,0.56468802,195.42,195.28,15.72107305]
[1736339719428,0.56468802,195.42,195.27,208.85918507]
[1736339719429,23.776884,195.41,195.29,3.12771107]
[1736339719856,7.21318802,195.44,195.29,140.22771107]
[1736339720041,2.63855504,195.44,195.3,160.67167305]
[1736339720350,0.56468802,195.48,195.31,208.85906598]
[1736339720553,0.56468802,195.48,195.32,0.76756069]
[1736339720847,0.56468802,195.48,195.32,137.86756069]
[1736339721045,0.56468802,195.48,195.33,0.76758855]
[1736339721348,0.56468802,195.48,195.33,224.5801054]
[1736339721665,0.56468802,195.48,195.33,223.81251685]
[1736339721950,2.28309998,195.51,195.36,15.72107305]
[1736339722151,5.74972635,195.51,195.37,140.22733278]
[1736339722455,5.74972635,195.51,195.37,155.18107305]
[1736339722752,20.0,195.48,195.39,138.6694]
[1736339722953,4.03131439,195.51,195.4,0.76732981]
[1736339723454,0.56468802,195.55,195.41,15.72107305]
[1736339723761,5.74972635,195.56,195.42,137.86718404]
[1736339723955,4.03131439,195.56,195.43,15.72107305]
[1736339724251,0.56468802,195.6,195.44,155.94812513]
[1736339724456,23.776884,195.59,195.45,16.48810314]
[1736339724652,20.0,195.58,195.45,16.48810314]
[1736339724962,0.56468802,195.6,195.45,16.48810314]
[1736339725132,23.776884,195.59,195.46,0.76702482]
[1736339725451,20.0,195.58,195.47,6.2869]
[1736339725661,20.0,195.58,195.48,0.76698509]
[1736339725830,23.776884,195.57,195.48,137.86698509]
[1736339726026,23.776884,195.57,195.48,137.1]
[1736339726229,20.0,195.54,195.48,137.1]
[1736339726955,20.0,195.57,195.48,137.1]
[1736339727154,20.0,195.57,195.49,0.76695384]
[1736339727352,2.05396026,195.61,195.49,137.86695384]
[1736339727543,0.56468802,195.65,195.49,137.1]
[1736339727728,20.0,195.63,195.5,0.76689694]
[1736339727932,0.56468802,195.62,195.51,2.36]
[1736339728151,23.776884,195.57,195.51,137.1]
[1736339728555,20.0,195.6,195.49,139.46]
[1736339728741,23.776884,195.54,195.49,139.46]
[1736339729059,20.0,195.55,195.49,139.46]
[1736339729238,20.0,195.61,195.49,139.46]
[1736339729438,20.0,195.61,195.5,0.76697826]
[1736339729864,20.0,195.57,195.5,137.86697826]
[1736339730060,20.0,195.57,195.5,137.1]
[1736339730754,20.0,195.57,195.51,137.86692777]
[1736339730955,11.5755307,195.66,195.51,138.7126]
[1736339731264,2.05661874,195.66,195.51,138.7126]
[1736339731449,20.0,195.61,195.51,138.7126]
[1736339731760,23.776884,195.62,195.51,138.7126]
[1736339732267,20.0,195.59,195.51,138.7126]
[1736339732436,20.0,195.55,195.51,141.0726]
[1736339733044,20.0,195.55,195.52,0.7669215]
[1736339733269,20.0,195.55,195.51,141.0726]
[1736339733471,20.0,195.64,195.51,141.0726]
[1736339733674,20.0,195.59,195.52,137.86694343]
[1736339733852,20.0,195.59,195.52,137.1]
[1736339734175,20.0,195.55,195.52,137.1]
[1736339734633,43.776884,195.64,195.52,137.1]
[1736339734837,44.34157202,195.64,195.53,0.76685052]
[1736339735153,43.776884,195.64,195.53,0.76685052]
[1736339735863,43.776884,195.64,195.53,137.86685052]
[1736339736168,2.59062477,195.67,195.53,137.1]
[1736339736466,0.56468802,195.71,195.55,15.72107305]
[1736339736666,0.56468802,195.71,195.56,0.76659117]
[1736339736882,0.56468802,195.72,195.59,138.6859]
[1736339737170,0.56468802,195.73,195.6,3.10649524]
[1736339737469,20.56468802,195.73,195.6,140.20649524]
[1736339737667,20.0,195.69,195.6,139.44]
[1736339737972,6.6057,195.76,195.6,139.44]
[1736339738266,20.0,195.69,195.6,139.44]
[1736339738637,0.56468802,195.75,195.6,139.44]
[1736339738835,23.776884,195.74,195.61,0.76648291]
[1736339739059,20.0,195.71,195.61,137.86648291]
[1736339739359,23.776884,195.74,195.61,137.1]
[1736339739538,23.776884,195.74,195.62,0.76643943]
[1736339739738,22.59937134,195.76,195.63,6.1809]
[1736339739938,7.93321196,195.81,195.64,137.86638272]
[1736339740249,0.56468802,195.8,195.64,137.1]
[1736339740567,0.56468802,195.8,195.64,80.8]
[1736339740762,0.56468802,195.8,195.64,81.56624472]
[1736339740942,5.0,195.79,195.64,80.8]
[1736339741261,23.776884,195.7,195.64,137.1]
[1736339741458,20.0,195.67,195.64,137.1]
[1736339742867,20.0,195.67,195.65,0.7664639]
[1736339743161,20.0,195.67,195.64,137.1]
[1736339743360,23.776884,195.66,195.63,145.6209]
[1736339743570,20.0,195.64,195.63,145.6209]
[1736339743767,43.776884,195.64,195.63,143.2809]
[1736339745347,20.0,195.73,195.63,143.2809]
[1736339745667,23.776884,195.72,195.63,143.2809]
[1736339745971,20.0,195.65,195.63,143.2809]
[1736339746880,23.776884,195.64,195.63,6.1809]
[1736339747858,2.34,195.74,195.6,217.9]
[1736339747859,20.0,195.61,195.6,217.9]
[1736339748483,20.0,195.66,195.6,217.9]
[1736339748681,20.0,195.64,195.6,217.9]
[1736339748859,20.0,195.61,195.6,217.9]
[1736339749261,43.776884,195.61,195.6,217.9]
[1736339750868,2.01194058,195.68,195.6,217.9]
[1736339751077,20.0,195.69,195.6,217.9]
[1736339751278,20.0,195.61,195.6,217.9]
[1736339751483,20.0,195.69,195.6,217.9]
[1736339751778,2.10927595,195.72,195.61,0.76658078]
[1736339751988,20.0,195.68,195.61,137.86658078]
[1736339752168,20.0,195.68,195.61,137.1]
[1736339752369,0.87958802,195.76,195.62,137.8664565]
[1736339752666,0.87958802,195.76,195.62,137.1]
[1736339752867,20.0,195.75,195.63,0.76644987]
[1736339753059,0.87958802,195.74,195.63,0.76644987]
[1736339753260,20.0,195.66,195.63,137.86644987]
[1736339753460,23.776884,195.69,195.63,137.1]
[1736339754194,20.0,195.66,195.64,137.86646104]
[1736339754366,3.67502062,195.77,195.64,137.1]
[1736339754565,0.87958802,195.76,195.65,0.76635698]
[1736339754866,20.0,195.72,195.65,137.86635698]
[1736339755053,20.0,195.72,195.66,6.0634]
[1736339755258,0.87958802,195.78,195.67,137.86629809]
[1736339755466,4.03131439,195.79,195.68,1.5683]
[1736339755669,20.0,195.78,195.69,0.76623447]
[1736339755861,4.03131439,195.79,195.69,137.86623447]
[1736339756079,23.776884,195.78,195.69,137.1]
[1736339756262,23.776884,195.78,195.7,0.76618373]
[1736339756972,6.04108984,195.79,195.7,0.76618373]
[1736339757360,20.0,195.76,195.7,0.76618373]
[1736339757557,20.0,195.76,195.7,3.10618373]
[1736339760470,4.91090241,195.84,195.7,221.00618373]
[1736339760673,20.0,195.83,195.7,220.24]
[1736339760868,0.87958802,195.82,195.71,0.7661356]
[1736339761273,20.0,195.78,195.71,218.6661356]
[1736339761493,20.0,195.78,195.71,217.9]
[1736339761677,20.0,195.74,195.72,137.86608635]
[1736339761982,20.0,195.74,195.72,137.1]
[1736339762681,23.776884,195.73,195.72,137.1]
[1736339763070,43.776884,195.83,195.71,217.9]
[1736339763270,20.0,195.8,195.71,217.9]
[1736339763487,20.0,195.72,195.71,217.9]
[1736339763903,20.0,195.69,195.68,138.6683]
[1736339764076,43.776884,195.69,195.68,1.5683]
[1736339765906,43.776884,195.69,195.66,223.9634]
[1736339766068,23.776884,195.68,195.66,223.9634]
[1736339766268,2.04885234,195.76,195.66,223.9634]
[1736339766470,2.34,195.77,195.67,0.7663633]
[1736339766973,20.0,195.69,195.67,137.8663633]
[1736339767313,20.0,195.69,195.67,137.1]
[1736339769697,20.0,195.69,195.66,86.8634]
[1736339769698,23.776884,195.68,195.66,223.9634]
[1736339773593,20.0,195.71,195.66,80.8]
[1736339773794,20.0,195.67,195.61,87.1754]
[1736339774009,23.776884,195.66,195.61,87.1754]
[1736339774303,23.776884,195.66,195.62,0.76662225]
[1736339774603,23.776884,195.66,195.61,224.2754]
[1736339774984,20.0,195.63,195.61,6.3754]
[1736339775196,20.0,195.63,195.58,138.6499]
[1736339775398,23.776884,195.62,195.58,137.1]
[1736339775611,20.0,195.59,195.58,137.1]
[1736339776313,43.776884,195.59,195.58,137.1]
[1736339778210,23.776884,195.58,195.56,224.2754]
[1736339778506,20.0,195.59,195.54,184.7719]
[1736339780212,20.0,195.57,195.54,46.04]
[1736339780498,23.776884,195.56,195.54,46.04]
[1736339780907,2.02582534,195.63,195.54,183.14]
[1736339781117,0.87958802,195.67,195.55,137.86677987]
[1736339781286,20.0,195.58,195.55,137.1]
[1736339782806,23.776884,195.57,195.54,46.04]
[1736339783098,23.776884,195.62,195.54,46.04]
[1736339783307,23.776884,195.58,195.54,46.04]
[1736339787118,23.776884,195.58,195.51,224.4973]
[1736339787944,23.776884,195.58,195.52,218.66691221]
[1736339788099,23.776884,195.58,195.52,217.9]
[1736339788299,2.07018937,195.62,195.53,0.76678302]
[1736339788499,20.0,195.59,195.53,218.66678302]
[1736339788737,23.776884,195.58,195.53,217.9]
[1736339789436,20.0,195.55,195.53,217.9]
[1736339789926,23.776884,195.54,195.53,80.8]
[1736339792701,1.5962,195.6,195.53,80.8]
[1736339792908,21.5556,195.66,195.53,217.9]
[1736339793109,20.0,195.64,195.53,217.9]
[1736339793316,0.87958802,195.63,195.53,217.9]
[1736339793525,20.0,195.55,195.53,217.9]
[1736339794627,20.0,195.55,195.53,217.4]
[1736339794931,23.776884,195.54,195.53,217.4]
[1736339795223,20.0,195.56,195.47,223.8396]
[1736339795423,20.0,195.52,195.47,223.8396]
[1736339795630,23.776884,195.51,195.47,223.8396]
[1736339795809,20.0,195.59,195.47,223.8396]
[1736339796125,20.0,195.53,195.48,218.16706245]
[1736339796329,23.776884,195.52,195.48,217.4]
[1736339796718,20.0,195.59,195.48,217.4]
[1736339796917,20.0,195.53,195.48,217.4]
[1736339797125,23.776884,195.52,195.48,217.4]
[1736339799322,23.776884,195.52,195.49,0.76702071]
[1736339799323,20.0,195.5,195.49,0.76702071]
[1736339799636,20.0,195.5,195.48,217.4]
[1736339800010,2.05311894,195.57,195.49,0.76702961]
[1736339800211,2.34,195.64,195.49,218.16702961]
[1736339800433,0.87958802,195.63,195.49,217.4]
[1736339800638,23.776884,195.54,195.5,218.16692205]
[1736339800839,20.0,195.55,195.5,217.4]
[1736339801024,5.2490298,195.65,195.51,218.16687033]
[1736339801334,23.776884,195.56,195.51,217.4]
[1736339801524,20.0,195.53,195.51,217.4]
[1736339802027,43.776884,195.61,195.51,217.4]
[1736339802222,0.87958802,195.6,195.51,217.4]
[1736339803039,0.87958802,195.6,195.51,80.3]
[1736339803935,20.0,195.51,195.47,223.8396]
[1736339804135,20.0,195.48,195.47,223.8396]
[1736339804735,20.0,195.48,195.47,217.4]
[1736339805939,43.776884,195.48,195.47,217.4]
[1736339807348,43.776884,195.48,195.43,223.4064]
[1736339807349,23.776884,195.47,195.43,223.4064]
[1736339807554,20.0,195.44,195.43,223.4064]
[1736339809944,23.776884,195.56,195.43,223.4064]
[1736339810132,20.0,195.47,195.43,223.4064]
[1736339810329,20.0,195.44,195.43,223.4064]
[1736339811052,0.87958802,195.57,195.43,223.4064]
[1736339811053,2.92736403,195.57,195.43,223.4064]
[1736339811235,2.92736403,195.57,195.44,0.76713501]
[1736339811563,20.0,195.56,195.44,0.76713501]
[1736339811991,0.87958802,195.57,195.44,0.76713501]
[1736339812276,0.87958802,195.58,195.44,0.76713501]
[1736339812474,3.60566573,195.59,195.46,233.12107305]
[1736339812645,2.06466573,195.59,195.48,1.5116]
[1736339812849,23.776884,195.58,195.49,0.76695997]
[1736339813062,20.0,195.61,195.49,0.76695997]
[1736339813266,20.0,195.57,195.49,0.76695997]
[1736339814678,20.0,195.57,195.48,1.5116]
[1736339814848,20.0,195.57,195.49,2.34]
[1736339815548,20.0,195.55,195.49,139.44]
[1736339815881,20.0,195.51,195.49,139.44]
[1736339816765,20.0,195.51,195.49,137.1]
[1736339818283,23.776884,195.5,195.49,137.1]
[1736339818578,20.0,195.47,195.46,217.4]
[1736339820786,43.776884,195.47,195.46,80.3]
[1736339821666,43.776884,195.44,195.43,137.1]
[1736339821870,23.776884,195.5,195.39,223.8852]
[1736339822063,20.0,195.43,195.39,223.8852]
[1736339823104,43.776884,195.4,195.39,217.4]
[1736339824884,23.776884,195.39,195.35,217.4]
[1736339825252,23.776884,195.42,195.35,217.4]
[1736339825456,20.0,195.39,195.35,217.4]
[1736339826189,0.87958802,195.47,195.36,0.76759986]
[1736339826350,20.0,195.43,195.36,217.4]
[1736339826552,0.87958802,195.47,195.36,217.4]
[1736339826553,20.0,195.39,195.36,217.4]
[1736339827188,23.776884,195.38,195.36,217.4]
[1736339828868,7.62,195.48,195.36,217.4]
[1736339828869,20.0,195.45,195.36,217.4]
[1736339829070,0.87958802,195.47,195.36,217.4]
[1736339829503,0.87958802,195.51,195.37,0.76752218]
[1736339829991,8.2174,195.52,195.37,218.16752218]
[1736339830209,20.0,195.46,195.38,219.74]
[1736339830392,20.0,195.46,195.39,0.76733597]
[1736339830597,20.0,195.42,195.39,137.86733597]
[1736339830790,20.0,195.42,195.39,137.1]
[1736339832296,20.0,195.45,195.38,137.1]
[1736339832493,5.0,195.51,195.38,137.1]
[1736339832494,20.0,195.39,195.38,137.1]
[1736339833306,43.776884,195.39,195.34,225.0947]
[1736339833477,23.776884,195.38,195.34,225.0947]
[1736339833673,20.0,195.35,195.34,225.0947]
[1736339833882,20.0,195.35,195.32,139.44]
[1736339834272,20.0,195.35,195.32,137.1]
[1736339834696,20.0,195.33,195.27,263.48]
[1736339834898,20.0,195.29,195.27,263.48]
[1736339835815,10.0,195.45,195.27,263.48]
[1736339836008,10.0,195.45,195.28,0.76785927]
[1736339836009,24.65647202,195.42,195.28,0.76785927]
[1736339836297,20.0,195.39,195.28,218.16785927]
[1736339836592,20.0,195.38,195.28,217.4]
[1736339836788,20.0,195.38,195.29,0.76770658]
[1736339837490,23.776884,195.38,195.29,0.76770658]
[1736339837724,23.776884,195.38,195.29,16.48877963]
[1736339837917,2.34,195.46,195.32,1.565]
[1736339838119,2.44178802,195.48,195.33,220.50755414]
[1736339838306,2.94758446,195.48,195.34,15.72107305]
[1736339838607,23.776884,195.47,195.35,137.86747059]
[1736339838805,2.94758446,195.48,195.36,0.76747112]
[1736339839017,22.94758446,195.48,195.35,137.1]
[1736339840328,20.0,195.4,195.35,137.1]
[1736339840502,23.776884,195.39,195.35,137.1]
[1736339841907,20.0,195.36,195.33,219.74]
[1736339842541,23.776884,195.38,195.33,219.74]
[1736339843426,0.87958802,195.49,195.34,218.16762538]
[1736339843736,0.87958802,195.51,195.35,233.12107305]
[1736339844038,0.87958802,195.51,195.36,233.88845135]
[1736339844220,20.87958802,195.51,195.36,233.12107305]
[1736339844536,20.0,195.51,195.39,6.128]
[1736339844735,5.74972635,195.55,195.41,1.6523]
[1736339844920,4.03131439,195.55,195.42,16.48828029]
[1736339845119,22.05922978,195.55,195.42,233.88828029]
[1736339845423,22.05922978,195.55,195.42,233.12107305]
[1736339845723,23.776884,195.54,195.42,233.12107305]
[1736339845923,1.5285,195.58,195.42,233.12107305]
[1736339846143,0.87958802,195.57,195.42,233.12107305]
[1736339846339,0.87958802,195.57,195.44,15.72107305]
[1736339846545,0.87958802,195.57,195.42,217.4]
[1736339846546,2.01183851,195.58,195.45,233.88815623]
[1736339846742,24.03131439,195.6,195.47,6.0456]
[1736339847043,4.03131439,195.6,195.48,3.10698052]
[1736339847223,0.87958802,195.59,195.47,6.0456]
[1736339847426,6.96804332,195.6,195.48,0.76712515]
[1736339847613,6.0884553,195.6,195.48,0.76712515]
[1736339847933,23.776884,195.59,195.48,0.76712515]
[1736339848135,20.0,195.56,195.48,0.76712515]
[1736339848336,4.03131439,195.6,195.48,137.86712515]
[1736339848545,2.54408802,195.63,195.48,162.25688193]
[1736339848912,20.0,195.59,195.48,137.1]
[1736339849215,2.03284235,195.63,195.49,244.07288193]
[1736339849524,0.87958802,195.67,195.5,243.32371041]
[1736339849718,20.0,195.61,195.51,219.74]
[1736339849923,0.87958802,195.67,195.52,218.16680282]
[1736339850123,0.87958802,195.67,195.53,0.76680598]
[1736339850331,20.0,195.57,195.52,217.4]
[1736339850529,20.0,195.53,195.52,217.4]
[1736339850739,20.0,195.53,195.52,137.1]
[1736339850929,43.776884,195.53,195.52,137.1]
[1736339851442,20.0,195.63,195.5,2.36]
[1736339851644,23.776884,195.57,195.5,139.46]
[1736339851848,23.776884,195.53,195.5,137.1]
[1736339852022,20.0,195.51,195.5,137.1]
[1736339852548,20.0,195.63,195.5,137.1]
[1736339852715,23.776884,195.54,195.5,137.1]
[1736339852912,20.0,195.51,195.5,137.1]
[1736339854123,23.776884,195.64,195.5,137.1]
[1736339854337,23.776884,195.64,195.49,3.876]
[1736339854338,0.87958802,195.63,195.51,137.86701723]
[1736339854530,0.87958802,195.65,195.51,137.1]
[1736339854731,0.87958802,195.65,195.52,0.76681805]
[1736339854928,23.776884,195.6,195.52,137.86681805]
[1736339855239,20.0,195.57,195.52,137.1]
[1736339855441,20.0,195.57,195.53,137.86683037]
[1736339855626,0.87958802,195.67,195.53,137.1]
[1736339855627,23.776884,195.6,195.53,137.1]
[1736339855832,20.0,195.61,195.54,137.86681959]
[1736339856034,20.0,195.65,195.54,137.1]
[1736339856332,0.87958802,195.64,195.54,137.1]
[1736339856530,20.0,195.6,195.54,137.1]
[1736339857448,20.0,195.63,195.54,137.1]
[1736339857653,23.776884,195.6,195.54,137.1]
[1736339858246,20.0,195.61,195.54,137.1]
[1736339858247,20.0,195.65,195.54,137.1]
[1736339858452,4.55493154,195.68,195.56,143.3735]
[1736339858639,20.0,195.64,195.57,137.86669992]
[1736339858828,20.0,195.64,195.57,137.1]
[1736339859034,20.0,195.6,195.56,143.3735]
[1736339859426,20.0,195.6,195.57,0.7667434]
[1736339859627,6.95094593,195.68,195.57,140.2267434]
[1736339859957,20.0,195.64,195.57,139.46]
[1736339860140,20.0,195.6,195.57,139.46]
[1736339860340,20.0,195.6,195.58,2.35307614]
[1736339860936,4.03131439,195.68,195.58,139.45307614]
[1736339861156,4.03131439,195.68,195.58,138.6864]
[1736339861358,4.03131439,195.68,195.59,0.76663892]
[1736339861856,20.0,195.66,195.59,0.76663892]
[1736339863033,20.0,195.62,195.59,218.16663892]
[1736339863234,20.0,195.62,195.59,217.4]
[1736339864659,20.0,195.62,195.6,0.76659609]
[1736339865331,2.08870564,195.69,195.6,218.16659609]
[1736339865547,4.03131439,195.73,195.61,25.15688193]
[1736339865735,0.87958802,195.77,195.63,31.43228193]
[1736339865926,2.0894997,195.77,195.64,3.12634335]